bitfinex/quotes_BTCUSD_20250523
["timestamp","ask_amount","ask_price","bid_price","bid_amount"]
[1747989403357,0.00305103,110810.0,110800.0,6.34844572]
[1747989403558,0.02,110820.0,110810.0,0.5475615]
[1747989403758,0.02,110820.0,110810.0,5.26966006]
[1747989404680,0.02,110820.0,110810.0,5.28936006]
[1747989405238,0.02,110820.0,110810.0,5.29036006]
[1747989405570,0.02,110820.0,110810.0,5.30966006]
[1747989405984,0.02,110820.0,110810.0,5.31066006]
[1747989408413,0.02,110820.0,110810.0,5.33932221]
[1747989409887,0.02,110820.0,110810.0,5.33832221]
[1747989410126,0.02,110820.0,110810.0,5.33932221]
[1747989410530,0.02,110820.0,110810.0,5.34132221]
[1747989412412,0.00299,110830.0,110820.0,0.20754277]
[1747989412635,0.00304103,110830.0,110820.0,5.91778133]
[1747989413625,0.00304103,110830.0,110820.0,5.91978133]
[1747989414194,0.0401,110850.0,110840.0,0.54750532]
[1747989414401,0.04015102,110850.0,110840.0,1.24689088]
[1747989414644,0.00205102,110850.0,110840.0,5.87944388]
[1747989415402,0.00205102,110850.0,110840.0,5.67193856]
[1747989415600,0.00205102,110850.0,110840.0,5.85237883]
[1747989416205,0.00205102,110850.0,110840.0,5.87944388]
[1747989416403,0.05759219,110850.0,110840.0,5.87944388]
[1747989416605,0.04857148,110850.0,110840.0,5.87944388]
[1747989417492,0.04857148,110850.0,110840.0,5.87944388]
[1747989418044,0.04857148,110850.0,110840.0,5.87940388]
[1747989418251,0.05759219,110850.0,110840.0,5.87940388]
[1747989418447,0.03955102,110850.0,110840.0,5.87940388]
[1747989418651,0.04857148,110850.0,110840.0,5.87940388]
[1747989418851,0.05759202,110850.0,110840.0,5.26960388]
[1747989419066,0.04857148,110850.0,110840.0,5.87940388]
[1747989419286,0.02025102,110850.0,110840.0,5.87940388]
[1747989419693,0.02927148,110850.0,110840.0,5.87940388]
[1747989419898,0.02025102,110850.0,110840.0,5.87940388]
[1747989420425,0.02025102,110850.0,110840.0,5.87924388]
[1747989420743,0.04777156,110850.0,110840.0,5.87924388]
[1747989420936,0.03875102,110850.0,110840.0,5.87924388]
[1747989421372,0.01803987,110860.0,110850.0,0.5474866]
[1747989421373,0.03703987,110860.0,110850.0,0.5474866]
[1747989421548,0.03703987,110860.0,110850.0,0.9367666]
[1747989422715,0.04706001,110860.0,110850.0,0.9367666]
[1747989422912,0.04706001,110860.0,110850.0,0.95102693]
[1747989423206,0.04806001,110860.0,110850.0,0.95102693]
[1747989423434,0.05708023,110860.0,110850.0,0.95102693]
[1747989424050,0.05708023,110860.0,110850.0,1.56062693]
[1747989424211,0.07628023,110860.0,110850.0,1.56062693]
[1747989424426,0.06726001,110860.0,110850.0,1.56062693]
[1747989425320,0.05823987,110860.0,110850.0,1.56062693]
[1747989425874,0.06726001,110860.0,110850.0,1.56062693]
[1747989426067,0.06726009,110860.0,110850.0,1.56062693]
[1747989426796,0.05823987,110860.0,110850.0,1.56062693]
[1747989426999,0.05823987,110860.0,110850.0,0.9420063]
[1747989427147,0.0402,110860.0,110850.0,1.56062693]
[1747989427353,0.04921981,110860.0,110850.0,1.56062693]
[1747989427554,0.06726,110860.0,110850.0,0.9420063]
[1747989427838,0.25668802,110860.0,110850.0,1.56964764]
[1747989428622,0.2657084,110860.0,110850.0,1.56062725]
[1747989428764,0.25668859,110860.0,110850.0,1.55160646]
[1747989428982,0.25668859,110860.0,110850.0,0.95102733]
[1747989429206,0.24766862,110860.0,110850.0,1.56062733]
[1747989429624,0.24766862,110860.0,110850.0,1.56964812]
[1747989429830,0.2386484,110860.0,110850.0,1.08282033]
[1747989430037,0.2386484,110860.0,110850.0,1.5516063]
[1747989430660,0.2386484,110860.0,110850.0,1.55160646]
[1747989430910,0.2386484,110860.0,110850.0,1.56062733]
[1747989431507,0.2386484,110860.0,110850.0,1.56964812]
[1747989432124,0.2386484,110860.0,110850.0,1.55538779]
[1747989432435,0.2386484,110860.0,110850.0,1.56440842]
[1747989432660,0.06726009,110860.0,110850.0,1.56440842]
[1747989433305,0.04921981,110860.0,110850.0,1.56440842]
[1747989433684,0.03933978,110860.0,110850.0,1.56440842]
[1747989433911,0.05753978,110860.0,110850.0,1.56440842]
[1747989435221,0.06655976,110860.0,110850.0,1.56440842]
[1747989435680,0.04851981,110860.0,110850.0,1.56440842]
[1747989435826,0.05753978,110860.0,110850.0,1.56440842]
[1747989436264,0.04851981,110860.0,110850.0,6.19696142]
[1747989436474,0.05753987,110860.0,110850.0,6.19696142]
[1747989436904,0.05753978,110860.0,110850.0,6.19696142]
[1747989437557,0.04851981,110860.0,110850.0,6.19696142]
[1747989437777,0.01101981,110860.0,110850.0,6.19696142]
[1747989438733,0.002,110860.0,110850.0,6.32360698]
[1747989439590,0.002,110860.0,110850.0,6.35226913]
[1747989439772,0.001,110860.0,110850.0,6.35226913]
[1747989439979,0.062,110870.0,110860.0,0.56566789]
[1747989440154,0.06205102,110870.0,110860.0,5.28776645]
[1747989440965,0.06205102,110870.0,110860.0,5.30676645]
[1747989441542,0.06205102,110870.0,110860.0,5.3354286]
[1747989443240,0.06205102,110870.0,110860.0,5.9449886]
[1747989444090,0.03205102,110870.0,110860.0,5.9449886]
[1747989446693,0.03205102,110870.0,110860.0,5.9720246]
[1747989447159,0.03205102,110870.0,110860.0,5.9449886]
[1747989447643,0.03205102,110870.0,110860.0,5.9479886]
[1747989447803,0.03205102,110870.0,110860.0,5.9509886]
[1747989448285,0.03205102,110870.0,110860.0,5.92232645]
[1747989451113,0.03205102,110870.0,110860.0,5.95081967]
[1747989452027,0.02581102,110870.0,110860.0,5.95081967]
[1747989453899,0.02581102,110870.0,110860.0,5.30405967]
[1747989454101,0.02581102,110870.0,110860.0,5.91421967]
[1747989455062,0.02581102,110870.0,110860.0,5.30405967]
[1747989455289,0.02581102,110870.0,110860.0,5.91421967]
[1747989456014,0.02581102,110870.0,110860.0,5.30405967]
[1747989456248,0.02581102,110870.0,110860.0,5.91421967]
[1747989456377,0.02581102,110870.0,110860.0,5.88572645]
[1747989456627,0.02581102,110870.0,110860.0,5.90542645]
[1747989456818,0.02581102,110870.0,110860.0,5.92422645]
[1747989457027,0.02581102,110870.0,110860.0,5.95126445]
[1747989457687,0.02581102,110870.0,110860.0,5.97975767]
[1747989460232,0.0117151,110870.0,110860.0,5.97975767]
[1747989466315,0.01,110880.0,110870.0,0.58714917]
[1747989466538,0.01,110880.0,110870.0,5.30924773]
[1747989466689,0.01,110880.0,110870.0,5.91940773]
[1747989467116,0.01,110880.0,110870.0,5.94644073]
[1747989467999,0.01,110880.0,110870.0,5.97148603]
[1747989468203,0.01,110880.0,110870.0,6.00000297]
[1747989468487,0.00099,110890.0,110880.0,0.58563046]
[1747989468650,0.00099,110890.0,110880.0,5.30772902]
[1747989469223,0.00099,110890.0,110880.0,5.33476102]
[1747989470096,0.00099,110890.0,110880.0,5.32507796]
[1747989470296,0.00099,110890.0,110880.0,5.34467796]
[1747989470628,0.00099,110890.0,110880.0,5.34667796]
[1747989471990,0.00099,110890.0,110880.0,5.32907796]
[1747989472365,0.00099,110890.0,110880.0,5.93915796]
[1747989473417,0.00099,110890.0,110880.0,5.95805796]
[1747989474207,0.00099,110890.0,110880.0,5.32907796]
[1747989474414,0.00099,110890.0,110880.0,5.93915796]
[1747989474721,0.02019,110890.0,110880.0,5.32907796]
[1747989474928,0.02019,110890.0,110880.0,5.93915796]
[1747989475275,0.00099,110890.0,110880.0,5.93915796]
[1747989478843,0.00099,110890.0,110880.0,5.32907796]
[1747989479062,0.00099,110890.0,110880.0,5.93911796]
[1747989479427,0.00099,110890.0,110880.0,5.91060102]
[1747989482092,0.00099,110890.0,110880.0,5.92128102]
[1747989486037,0.00099,110890.0,110880.0,5.93918102]
[1747989486453,0.00099,110890.0,110880.0,5.95678102]
[1747989488662,0.04810737,110890.0,110880.0,0.46057756]
[1747989488888,0.24650176,110890.0,110880.0,1.84223851]
[1747989489099,0.24650176,110890.0,110880.0,2.3198693]
[1747989489303,0.25551954,110890.0,110880.0,2.34845354]
[1747989489525,0.03909,110890.0,110880.0,2.69747172]
[1747989489967,0.04810737,110890.0,110880.0,2.69747172]
[1747989490376,0.03909,110890.0,110880.0,2.78701728]
[1747989490584,0.04810721,110890.0,110880.0,2.78701728]
[1747989492005,0.03909,110890.0,110880.0,2.78701728]
[1747989492428,0.04810721,110890.0,110880.0,2.78701728]
[1747989493601,0.03909,110890.0,110880.0,2.78701728]
[1747989494017,0.04810721,110890.0,110880.0,2.78705728]
[1747989494224,0.03909,110890.0,110880.0,2.78705728]
[1747989496516,0.00099,110890.0,110880.0,2.78705728]
[1747989496931,0.00088993,110890.0,110880.0,2.78705728]
[1747989497580,0.00088993,110890.0,110880.0,3.17613728]
[1747989503843,0.00088993,110890.0,110880.0,3.21323728]
[1747989504051,0.00088993,110890.0,110880.0,3.24027128]
[1747989506086,0.00088993,110890.0,110880.0,3.21168712]
[1747989510241,0.06867881,110900.0,110890.0,0.54741176]
[1747989510460,0.08637881,110900.0,110890.0,5.26951032]
[1747989510758,0.10517881,110900.0,110890.0,5.26951032]
[1747989510935,0.10517881,110900.0,110890.0,5.29654332]
[1747989511612,0.10517881,110900.0,110890.0,5.32511363]
[1747989511824,0.06867881,110900.0,110890.0,5.32611363]
[1747989513066,0.06867881,110900.0,110890.0,5.32711363]
[1747989513280,0.06867881,110900.0,110890.0,5.34511363]
[1747989517809,0.06867881,110900.0,110890.0,5.31808063]
[1747989518416,0.06867881,110900.0,110890.0,5.30008063]
[1747989521736,0.06867881,110900.0,110890.0,5.27151032]
[1747989522171,0.07060162,110910.0,110900.0,0.20739306]
[1747989522343,0.07111191,110910.0,110900.0,5.91033162]
[1747989523354,0.07211191,110910.0,110900.0,5.91033162]
[1747989523568,0.07211191,110910.0,110900.0,5.89273162]
[1747989523855,0.07211191,110910.0,110900.0,5.91183162]
[1747989524253,0.07211191,110910.0,110900.0,5.93053162]
[1747989524628,0.07211191,110910.0,110900.0,4.18927862]
[1747989524837,0.07211191,110910.0,110900.0,3.67597862]
[1747989525015,0.09111191,110910.0,110900.0,3.67597862]
[1747989525269,0.09111191,110910.0,110900.0,3.70300762]
[1747989525464,0.10951191,110910.0,110900.0,3.67597862]
[1747989526507,0.09111191,110910.0,110900.0,3.67597862]
[1747989528947,0.09111191,110910.0,110900.0,3.40577862]
[1747989529150,0.10891191,110910.0,110900.0,3.67593862]
[1747989530321,0.11792749,110910.0,110900.0,2.21793862]
[1747989530718,0.13595923,110910.0,110900.0,0.71649306]
[1747989530922,0.13595923,110910.0,110900.0,1.06949306]
[1747989531223,0.1449753,110910.0,110900.0,1.31136978]
[1747989531426,0.14497522,110910.0,110900.0,1.31136978]
[1747989531551,0.13595915,110910.0,110900.0,1.31136978]
[1747989531755,0.14497522,110910.0,110900.0,1.31136978]
[1747989531955,0.13595915,110910.0,110900.0,1.31136978]
[1747989532158,0.12694324,110910.0,110900.0,1.31136978]
[1747989532366,0.13595915,110910.0,110900.0,1.31136978]
[1747989533726,0.14497522,110910.0,110900.0,1.31136978]
[1747989534036,0.13595915,110910.0,110900.0,1.31136978]
[1747989534232,0.32530169,110910.0,110900.0,0.71678561]
[1747989534383,0.13595915,110910.0,110900.0,1.33994561]
[1747989534586,0.11792749,110910.0,110900.0,1.33994561]
[1747989534846,0.10891191,110910.0,110900.0,1.33994561]
[1747989535212,0.10891191,110910.0,110900.0,0.71678561]
[1747989535434,0.11792757,110910.0,110900.0,1.33994561]
[1747989535617,0.11792757,110910.0,110900.0,1.42949117]
[1747989535618,0.07211191,110910.0,110900.0,1.42949117]
[1747989537067,0.07211191,110910.0,110900.0,1.44789117]
[1747989538367,0.07211191,110910.0,110900.0,1.42949117]
[1747989540435,0.07211191,110910.0,110900.0,1.81853117]
[1747989544825,0.07211191,110910.0,110900.0,1.62015467]
[1747989545232,0.07211191,110910.0,110900.0,1.80049732]
[1747989545456,0.07211191,110910.0,110900.0,1.81853117]
[1747989547050,0.07211191,110910.0,110900.0,1.78995534]
[1747989547255,0.07211191,110910.0,110900.0,1.40091534]
[1747989550094,0.07211191,110910.0,110900.0,1.40091534]
[1747989551960,0.08112749,110910.0,110900.0,1.40091534]
[1747989552164,0.08112766,110910.0,110900.0,1.40091534]
[1747989552560,0.11692766,110910.0,110900.0,1.13075534]
[1747989552751,0.13495931,110910.0,110900.0,1.13075534]
[1747989552955,0.11692757,110910.0,110900.0,1.40091534]
[1747989553163,0.09061191,110910.0,110900.0,1.40091534]
[1747989553363,0.07211191,110910.0,110900.0,1.40091534]
[1747989553570,0.08112757,110910.0,110900.0,1.40091534]
[1747989553763,0.07211191,110910.0,110900.0,1.40091534]
[1747989553964,0.08112757,110910.0,110900.0,1.40091534]
[1747989554221,0.07211191,110910.0,110900.0,1.40091534]
[1747989554974,0.08112757,110910.0,110900.0,1.40091534]
[1747989555179,0.07211191,110910.0,110900.0,1.40091534]
[1747989555390,0.07211191,110910.0,110900.0,1.42949117]
[1747989555647,0.08112757,110910.0,110900.0,1.42949117]
[1747989555800,0.08112757,110910.0,110900.0,1.15933117]
[1747989556017,0.07211191,110910.0,110900.0,1.42949117]
[1747989556213,0.08112757,110910.0,110900.0,1.42949117]
[1747989556568,0.27905396,110910.0,110900.0,0.77026404]
[1747989556812,0.31578602,110910.0,110900.0,1.51923805]
[1747989557022,0.32480225,110910.0,110900.0,1.53727157]
[1747989558134,0.32480225,110910.0,110900.0,1.40537165]
[1747989558337,0.32480225,110910.0,110900.0,0.78574829]
[1747989558542,0.30676987,110910.0,110900.0,1.41438829]
[1747989558745,0.31578602,110910.0,110900.0,1.38581197]
[1747989559266,0.31578602,110910.0,110900.0,1.37679541]
[1747989559674,0.32480233,110910.0,110900.0,1.35876205]
[1747989559871,0.31578667,110910.0,110900.0,0.87882265]
[1747989560073,0.31578667,110910.0,110900.0,1.16701683]
[1747989560283,0.18935953,110900.0,110890.0,0.63390724]
[1747989560487,0.23487649,110900.0,110890.0,0.45354833]
[1747989560894,0.24941734,110900.0,110890.0,0.72370833]
[1747989561113,0.24941734,110900.0,110890.0,0.38904]
[1747989561520,0.24941734,110900.0,110890.0,0.39004]
[1747989561521,0.41888983,110900.0,110890.0,0.39004]
[1747989561964,0.24941734,110900.0,110890.0,0.39004]
[1747989562348,0.24941734,110900.0,110890.0,0.72904]
[1747989562528,0.24941734,110900.0,110890.0,0.34]
[1747989562728,0.25041734,110900.0,110890.0,0.34]
[1747989563100,0.25041734,110900.0,110890.0,0.36504904]
[1747989563347,0.41988983,110900.0,110890.0,0.36604904]
[1747989563869,0.67890788,110900.0,110890.0,0.02504904]
[1747989564064,0.3399629,110900.0,110890.0,0.02504904]
[1747989564233,0.50943539,110900.0,110890.0,0.02504904]
[1747989564631,0.22587669,110890.0,110880.0,0.36483083]
[1747989567296,0.22587669,110890.0,110880.0,0.01409553]
[1747989570925,0.0365,110890.0,110880.0,0.01409553]
[1747989571337,0.05064085,110880.0,110870.0,0.9795353]
[1747989571969,0.00901802,110880.0,110870.0,0.37779303]
[1747989572173,0.00901721,110890.0,110880.0,0.53841146]
[1747989572385,0.00901721,110890.0,110880.0,0.68199347]
[1747989572386,0.01803466,110890.0,110880.0,0.68199347]
[1747989572790,0.03344085,110900.0,110880.0,0.46554556]
[1747989572994,0.0368,110900.0,110890.0,0.27024]
[1747989573195,0.0179,110900.0,110890.0,0.27024]
[1747989573846,0.0368,110900.0,110890.0,0.27024]
[1747989574045,0.0388,110900.0,110890.0,0.27024]
[1747989574285,0.2336835,110900.0,110890.0,0.6434153]
[1747989575752,0.2166835,110900.0,110890.0,0.9834153]
[1747989575948,0.2166835,110900.0,110890.0,0.97268]
[1747989576830,0.2355835,110900.0,110890.0,0.97268]
[1747989577645,0.2355835,110900.0,110890.0,0.9834153]
[1747989578165,0.2355835,110900.0,110890.0,0.3507353]
[1747989578368,0.2169167,110900.0,110890.0,1.16377421]
[1747989578534,0.23495071,110900.0,110890.0,0.9834153]
[1747989578742,0.22593423,110900.0,110890.0,0.9834153]
[1747989579491,0.24363423,110900.0,110890.0,0.9834153]
[1747989579696,0.23461751,110900.0,110890.0,0.9834153]
[1747989580058,0.25361751,110900.0,110890.0,0.9834153]
[1747989583531,0.25361751,110900.0,110890.0,0.3507353]
[1747989583742,0.25361751,110900.0,110890.0,0.9834153]
[1747989586754,0.20237617,110900.0,110890.0,0.99772904]
[1747989587075,0.21139322,110900.0,110890.0,0.99772904]
[1747989587270,0.21691743,110900.0,110890.0,0.99772904]
[1747989587556,0.24400055,110900.0,110890.0,0.36504904]
[1747989587813,0.24400055,110900.0,110890.0,0.99772904]
[1747989587997,0.24400055,110900.0,110890.0,0.36504904]
[1747989588180,0.24400055,110900.0,110890.0,0.99772904]
[1747989588423,0.24400055,110900.0,110890.0,0.98699374]
[1747989589698,0.33354611,110900.0,110890.0,0.01431374]
[1747989590086,0.33354611,110900.0,110890.0,0.35431374]
[1747989590495,0.33354611,110900.0,110890.0,0.34]
[1747989591362,0.22537669,110890.0,110880.0,0.01074561]
[1747989592710,0.22537669,110890.0,110880.0,0.37318561]
[1747989593522,0.20787669,110890.0,110880.0,0.37318561]
[1747989593733,0.22657669,110890.0,110880.0,0.37418561]
[1747989594104,0.22657669,110890.0,110880.0,0.38849935]
[1747989594422,0.22657669,110890.0,110880.0,0.40259589]
[1747989596273,0.23559439,110890.0,110880.0,0.40259589]
[1747989596496,0.21293524,110890.0,110880.0,0.42059589]
[1747989596718,0.18839439,110890.0,110880.0,0.60998974]
[1747989596928,0.19741217,110890.0,110880.0,0.44851456]
[1747989597130,0.19741217,110890.0,110880.0,0.43776903]
[1747989597331,0.21195302,110890.0,110880.0,0.43776895]
[1747989597536,0.21195302,110890.0,110880.0,0.4467877]
[1747989597745,0.21195302,110890.0,110880.0,0.42875028]
[1747989597944,0.21195302,110890.0,110880.0,0.43776895]
[1747989598293,0.21195302,110890.0,110880.0,0.43776903]
[1747989598498,0.21195302,110890.0,110880.0,0.4467877]
[1747989598707,0.21195302,110890.0,110880.0,0.62716288]
[1747989598926,0.21195302,110890.0,110880.0,0.63618147]
[1747989599293,0.21195302,110890.0,110880.0,0.43776903]
[1747989599946,0.21195302,110890.0,110880.0,0.42875028]
[1747989600973,0.20293532,110890.0,110880.0,0.42875028]
[1747989601199,0.19391754,110890.0,110880.0,0.98803374]
[1747989601822,0.19391754,110890.0,110880.0,1.00553374]
[1747989602028,0.20293532,110890.0,110880.0,1.20394626]
[1747989602239,0.20293532,110890.0,110880.0,1.21302767]
[1747989602654,0.20293532,110890.0,110880.0,1.03265249]
[1747989603330,0.20293532,110890.0,110880.0,1.04167116]
[1747989603473,0.20293532,110890.0,110880.0,1.03265249]
[1747989603891,0.20293532,110890.0,110880.0,1.02363374]
[1747989604103,0.20293532,110890.0,110880.0,1.03265249]
[1747989604505,0.20293532,110890.0,110880.0,1.02363374]
[1747989604947,0.20293532,110890.0,110880.0,1.00553374]
[1747989605412,0.19391754,110890.0,110880.0,1.00553374]
[1747989605977,0.19391754,110890.0,110880.0,0.35531374]
[1747989606180,0.19391754,110890.0,110880.0,0.98859374]
[1747989606530,0.19391754,110890.0,110880.0,0.71831374]
[1747989606732,0.19391754,110890.0,110880.0,0.98859374]
[1747989607247,0.19391754,110890.0,110880.0,0.97428]
[1747989608120,0.21291754,110890.0,110880.0,0.97428]
[1747989608858,0.21291754,110890.0,110880.0,0.704]
[1747989609063,0.23141754,110890.0,110880.0,0.341]
[1747989609271,0.23141754,110890.0,110880.0,0.97428]
[1747989610334,0.23141754,110890.0,110880.0,0.98861329]
[1747989611685,0.23141754,110890.0,110880.0,0.35533329]
[1747989611895,0.23141754,110890.0,110880.0,0.62561329]
[1747989612104,0.23141754,110890.0,110880.0,0.35533329]
[1747989613173,0.23141754,110890.0,110880.0,0.36608445]
[1747989618287,0.23141754,110890.0,110880.0,0.35533329]
[1747989623361,0.3209631,110890.0,110880.0,0.35533329]
[1747989624599,0.3209631,110890.0,110880.0,0.35075704]
[1747989624795,0.3219631,110890.0,110880.0,0.35075704]
[1747989626146,0.3229631,110890.0,110880.0,0.35075704]
[1747989626358,0.3209631,110890.0,110880.0,0.34]
[1747989626666,0.3269631,110890.0,110880.0,0.34]
[1747989633608,0.40614204,110890.0,110880.0,0.34]
[1747989634165,0.3269631,110890.0,110880.0,0.34]
[1747989648483,0.49596583,110890.0,110880.0,0.34]
[1747989648676,0.3269631,110890.0,110880.0,0.34]
[1747989652136,0.3084631,110890.0,110880.0,0.34]
[1747989654040,0.3256631,110890.0,110880.0,0.34]
[1747989654970,0.40089975,110890.0,110880.0,0.34]
[1747989655558,0.2894631,110890.0,110880.0,0.34]
[1747989656852,0.2894631,110890.0,110880.0,0.33929223]
[1747989657336,0.2894631,110890.0,110880.0,0.33858433]
[1747989658600,0.2894631,110890.0,110880.0,0.3493533]
[1747989658816,0.3243631,110890.0,110880.0,0.3493533]
[1747989660822,0.49336583,110890.0,110880.0,0.3493533]
[1747989661024,0.57763695,110890.0,110880.0,0.3493533]
[1747989661224,0.49336583,110890.0,110880.0,0.3493533]
[1747989662067,1.30428856,110890.0,110880.0,0.01076897]
[1747989662268,2.07571132,110890.0,110880.0,0.01076897]
[1747989662479,1.50985552,110890.0,110880.0,0.01076897]
[1747989663078,1.50385552,110890.0,110880.0,0.01076897]
[1747989663279,1.52618852,110890.0,110880.0,0.01176897]
[1747989663460,1.53318852,110890.0,110880.0,0.01276897]
[1747989663680,1.62271003,110890.0,110880.0,0.01276897]
[1747989663920,1.63135327,110890.0,110880.0,0.002]
[1747989664086,1.55919994,110890.0,110880.0,0.002]
[1747989664495,1.53387574,110890.0,110880.0,0.002]
[1747989665689,1.45354887,110890.0,110880.0,0.002]
[1747989666137,1.18322887,110890.0,110880.0,0.002]
[1747989666262,1.45354887,110890.0,110880.0,0.002]
[1747989666458,1.43027944,110890.0,110880.0,0.002]
[1747989666745,1.43207944,110890.0,110880.0,0.002]
[1747989667466,1.49450079,110890.0,110880.0,0.002]
[1747989667670,1.50372562,110890.0,110880.0,0.002]
[1747989672286,1.76140421,110890.0,110880.0,0.002]
[1747989672706,1.50372562,110890.0,110880.0,0.002]
[1747989673537,1.76140421,110890.0,110880.0,0.002]
[1747989674389,1.69898286,110890.0,110880.0,0.002]
[1747989677438,1.60416286,110890.0,110880.0,0.002]
[1747989677662,1.07612427,110890.0,110880.0,0.002]
[1747989677883,1.34648427,110890.0,110880.0,0.002]
[1747989680882,1.33784103,110890.0,110880.0,0.002]
[1747989682826,1.33792103,110890.0,110880.0,0.002]
[1747989683035,1.08024244,110890.0,110880.0,0.002]
[1747989683252,1.08494681,110890.0,110880.0,0.002]
[1747989683465,1.3426254,110890.0,110880.0,0.002]
[1747989683605,1.33792103,110890.0,110880.0,0.002]
[1747989684023,1.35124438,110890.0,110880.0,0.002]
[1747989684237,1.34654001,110890.0,110880.0,0.002]
[1747989684616,1.35124438,110890.0,110880.0,0.002]
[1747989685020,1.34654001,110890.0,110880.0,0.002]
[1747989685684,1.43173203,110890.0,110880.0,0.002]
[1747989686235,1.42702766,110890.0,110880.0,0.002]
[1747989686432,1.43173203,110890.0,110880.0,0.002]
[1747989687338,1.42702766,110890.0,110880.0,0.002]
[1747989687550,1.43173203,110890.0,110880.0,0.002]
[1747989687770,1.42702766,110890.0,110880.0,0.002]
[1747989688210,1.43173203,110890.0,110880.0,0.002]
[1747989689075,1.42702766,110890.0,110880.0,0.002]
[1747989689288,1.43173203,110890.0,110880.0,0.002]
[1747989689511,1.42702766,110890.0,110880.0,0.002]
[1747989694429,1.45234387,110890.0,110880.0,0.002]
[1747989696717,1.46312797,110890.0,110880.0,0.002]
[1747989697888,1.12496173,110890.0,110880.0,0.002]
[1747989698106,1.46312797,110890.0,110880.0,0.002]
[1747989700305,1.45390314,110890.0,110880.0,0.002]
[1747989701613,1.36438163,110890.0,110880.0,0.002]
[1747989702918,0.71979753,110890.0,110880.0,0.002]
[1747989703100,1.35091753,110890.0,110880.0,0.002]
[1747989703868,0.71979753,110890.0,110880.0,0.002]
[1747989704076,1.35091753,110890.0,110880.0,0.002]
[1747989704278,1.36170163,110890.0,110880.0,0.002]
[1747989705085,1.45122314,110890.0,110880.0,0.002]
[1747989706101,1.1130569,110890.0,110880.0,0.002]
[1747989706307,1.45122314,110890.0,110880.0,0.002]
[1747989707850,1.51364845,110890.0,110880.0,0.002]
[1747989709043,0.18942786,110860.0,110850.0,0.17571234]
[1747989709218,0.18042399,110850.0,110840.0,0.002]
[1747989709419,0.26996955,110850.0,110840.0,0.002]
[1747989710087,0.27899058,110850.0,110840.0,0.002]
[1747989710311,0.27899058,110850.0,110840.0,0.00205102]
[1747989712059,0.28099058,110850.0,110840.0,0.03745102]
[1747989712946,0.28399058,110850.0,110840.0,0.03745102]
[1747989720565,0.29853143,110850.0,110840.0,0.03745102]
[1747989731720,0.29853143,110850.0,110840.0,0.01965102]
[1747989731919,0.46761455,110850.0,110840.0,0.00205102]
[1747989732328,0.33213143,110850.0,110840.0,0.00205102]
[1747989735358,0.29853143,110850.0,110840.0,0.00205102]
[1747989745099,0.33433143,110850.0,110840.0,0.00205102]
[1747989746245,0.31643143,110850.0,110840.0,0.00205102]
[1747989746447,0.50351455,110850.0,110840.0,0.00205102]
[1747989746867,0.33443143,110850.0,110840.0,0.00205102]
[1747989747863,0.33243143,110850.0,110840.0,0.00205102]
[1747989748263,0.32943143,110850.0,110840.0,0.00205102]
[1747989748671,0.33243143,110850.0,110840.0,0.00305102]
[1747989749447,0.33543143,110850.0,110840.0,0.00405102]
[1747989754033,0.51451455,110850.0,110840.0,0.00405102]
[1747989757495,0.20403732,110820.0,110810.0,0.35756]
[1747989757728,0.21306071,110820.0,110810.0,0.35761102]
[1747989758094,0.21306071,110820.0,110810.0,0.36663547]
[1747989758302,0.21306071,110820.0,110810.0,0.35761102]
[1747989758702,0.21306071,110820.0,110810.0,0.81956459]
[1747989759630,0.21306071,110820.0,110810.0,0.63005102]
[1747989760113,0.21306071,110820.0,110810.0,0.63205102]
[1747989760475,0.20403732,110820.0,110810.0,0.66705102]
[1747989763872,0.20403732,110820.0,110810.0,0.85656459]
[1747989764321,0.20403732,110820.0,110810.0,0.86558896]
[1747989764988,0.20403732,110820.0,110810.0,0.85656459]
[1747989766089,0.20403732,110820.0,110810.0,0.86558896]
[1747989766720,0.20403732,110820.0,110810.0,0.85656459]
[1747989767244,0.01454085,110820.0,110810.0,0.85656459]
[1747989767481,0.01454085,110820.0,110810.0,0.88363697]
[1747989767482,0.03258714,110820.0,110810.0,0.88363697]
[1747989767943,0.04161061,110820.0,110810.0,0.88363697]
[1747989768698,0.05063376,110820.0,110810.0,0.88363697]
[1747989769113,0.04161029,110820.0,110810.0,0.88363697]
[1747989770485,0.05063376,110820.0,110810.0,0.88363697]
[1747989770835,0.24013023,110820.0,110810.0,0.88363713]
[1747989771262,0.24013023,110820.0,110810.0,0.89266109]
[1747989771900,0.23110733,110820.0,110810.0,0.57754896]
[1747989772125,0.22208418,110820.0,110810.0,0.83961325]
[1747989772336,0.22208418,110820.0,110810.0,0.84863746]
[1747989772557,0.19501368,110820.0,110810.0,0.63205102]
[1747989772804,0.19501368,110820.0,110810.0,0.82156451]
[1747989772978,0.19501368,110820.0,110810.0,0.82012451]
[1747989773186,0.19501368,110820.0,110810.0,0.8291488]
[1747989773864,0.19501368,110820.0,110810.0,0.82012451]
[1747989775872,0.19501368,110820.0,110810.0,0.83772451]
[1747989776086,0.19501368,110820.0,110810.0,0.84674872]
[1747989776670,0.19501368,110820.0,110810.0,0.21116451]
[1747989776831,0.19501368,110820.0,110810.0,0.8467488]
[1747989778763,0.19501368,110820.0,110810.0,0.82012451]
[1747989779160,0.19501368,110820.0,110810.0,0.8291488]
[1747989779687,0.02356432,110820.0,110810.0,0.2375888]
[1747989779894,0.22208402,110820.0,110810.0,0.87317293]
[1747989781331,0.22208402,110820.0,110810.0,0.85577293]
[1747989782020,0.22208402,110820.0,110810.0,0.22921293]
[1747989782230,0.22208402,110820.0,110810.0,0.85577293]
[1747989782648,0.22208402,110820.0,110810.0,0.58533293]
[1747989782852,0.22208402,110820.0,110810.0,0.85577293]
[1747989783195,0.21306079,110820.0,110810.0,0.85577293]
[1747989784536,0.21306079,110820.0,110810.0,0.85577301]
[1747989784707,0.21306079,110820.0,110810.0,0.86479714]
[1747989784938,0.03258755,110820.0,110810.0,0.89092102]
[1747989785113,0.21306038,110820.0,110810.0,0.89092102]
[1747989785520,0.03258707,110820.0,110810.0,0.88189714]
[1747989785726,0.04161046,110820.0,110810.0,0.89092102]
[1747989786146,0.05063393,110820.0,110810.0,0.89092102]
[1747989788743,0.03258707,110820.0,110810.0,1.23092102]
[1747989789728,0.04161046,110820.0,110810.0,1.23092102]
[1747989790120,0.03258707,110820.0,110810.0,1.23092102]
[1747989791594,0.03504328,110840.0,110830.0,0.54752388]
[1747989791795,0.21652676,110840.0,110830.0,1.17456388]
[1747989792508,0.05062734,110840.0,110830.0,1.17456388]
[1747989792723,0.05062726,110840.0,110830.0,1.17456388]
[1747989792932,0.03458365,110840.0,110830.0,1.17456388]
[1747989793169,0.0526271,110840.0,110830.0,1.17456388]
[1747989793354,0.06164903,110840.0,110830.0,1.17456388]
[1747989794252,0.06364903,110840.0,110830.0,1.17456388]
[1747989795021,0.0546271,110840.0,110830.0,1.17456388]